[Event "*** Titled Tuesday Blitz"]
[Site "Chess.com"]
[Date "2020.05.26"]
[Round "10"]
[White "francyIM"]
[Black "2L8IWUN"]
[Result "1-0"]
[WhiteElo "2709"]
[BlackElo "2556"]
[TimeControl "180+1"]
[EndTime "12:04:01 PDT"]
[Termination "francyIM won by resignation"]

1. c4 {[%clk 0:03:00.9]} 1... e6 {[%clk 0:02:57.5]} 2. d4 {[%clk 0:02:59.2]}
2... d5 {[%clk 0:02:57.4]} 3. Nc3 {[%clk 0:02:59.2]} 3... Nf6 {[%clk 0:02:57.5]}
4. Nf3 {[%clk 0:02:59.8]} 4... Nbd7 {[%clk 0:02:57.3]} 5. cxd5 {[%clk
0:02:56.9]} 5... exd5 {[%clk 0:02:57.3]} 6. Bg5 {[%clk 0:02:57.4]} 6... c6
{[%clk 0:02:57.5]} 7. e3 {[%clk 0:02:56.8]} 7... Be7 {[%clk 0:02:57.9]} 8. Bd3
{[%clk 0:02:57.1]} 8... Nh5 {[%clk 0:02:58.5]} 9. Bxe7 {[%clk 0:02:56.6]} 9...
Qxe7 {[%clk 0:02:59.4]} 10. O-O {[%clk 0:02:57.1]} 10... Ndf6 {[%clk 0:02:58.6]}
11. Re1 {[%clk 0:02:52.4]} 11... O-O {[%clk 0:02:56]} 12. Ne5 {[%clk 0:02:50]}
12... g6 {[%clk 0:02:53.6]} 13. g4 {[%clk 0:02:42.6]} 13... Ng7 {[%clk
0:02:53.3]} 14. f4 {[%clk 0:02:42.5]} 14... Ne4 {[%clk 0:02:43]} 15. g5 {[%clk
0:02:32.9]} 15... f6 {[%clk 0:02:27.1]} 16. gxf6 {[%clk 0:02:31.9]} 16... Nxf6
{[%clk 0:02:27.7]} 17. Qf3 {[%clk 0:02:23.4]} 17... Bf5 {[%clk 0:02:25.8]} 18.
e4 {[%clk 0:02:21.5]} 18... dxe4 {[%clk 0:02:23.5]} 19. Bxe4 {[%clk 0:02:12.3]}
19... Nxe4 {[%clk 0:01:59.2]} 20. Nxe4 {[%clk 0:02:13.2]} 20... Rad8 {[%clk
0:01:58.8]} 21. Ng3 {[%clk 0:02:08.3]} 21... Qb4 {[%clk 0:01:55.9]} 22. Ne2
{[%clk 0:02:00.3]} 22... Ne6 {[%clk 0:01:54]} 23. Qc3 {[%clk 0:01:52.3]} 23...
Qb6 {[%clk 0:01:48.9]} 24. Nc4 {[%clk 0:01:50.2]} 24... Qc7 {[%clk 0:01:41.8]}
25. Ne5 {[%clk 0:01:49.3]} 25... Rd5 {[%clk 0:01:37.3]} 26. Qe3 {[%clk
0:01:47.9]} 26... Rfd8 {[%clk 0:01:36.6]} 27. Rad1 {[%clk 0:01:42.6]} 27... Qd6
{[%clk 0:01:31.4]} 28. Nc4 {[%clk 0:01:37.5]} 28... Qb4 {[%clk 0:01:29.1]} 29.
b3 {[%clk 0:01:33.6]} 29... Qf8 {[%clk 0:01:12.8]} 30. Rd2 {[%clk 0:01:32.8]}
30... Qg7 {[%clk 0:01:11.9]} 31. Ne5 {[%clk 0:01:22.2]} 31... c5 {[%clk
0:01:07.5]} 32. Rc1 {[%clk 0:01:11.7]} 32... Nxd4 {[%clk 0:01:00.8]} 33. Nxd4
{[%clk 0:01:06.1]} 33... Rxd4 {[%clk 0:00:54.3]} 34. Rxd4 {[%clk 0:00:54.6]}
34... cxd4 {[%clk 0:00:55.2]} 35. Qf3 {[%clk 0:00:45.6]} 35... g5 {[%clk
0:00:50.8]} 36. Kf2 {[%clk 0:00:38]} 36... g4 {[%clk 0:00:45.1]} 37. Qe2 {[%clk
0:00:34.4]} 37... d3 {[%clk 0:00:41.6]} 38. Qe3 {[%clk 0:00:31.4]} 38... d2
{[%clk 0:00:35.3]} 39. Rd1 {[%clk 0:00:30.6]} 39... Qc7 {[%clk 0:00:34.3]} 40.
Rxd2 {[%clk 0:00:28.4]} 40... Rxd2+ {[%clk 0:00:30.7]} 41. Qxd2 {[%clk
0:00:29.3]} 41... Qc5+ {[%clk 0:00:30.9]} 42. Qe3 {[%clk 0:00:26.1]} 42... Qxe3+
{[%clk 0:00:27.1]} 43. Kxe3 {[%clk 0:00:24.2]} 43... Kf8 {[%clk 0:00:26.7]} 44.
Kd4 {[%clk 0:00:23.4]} 44... Ke7 {[%clk 0:00:26.8]} 45. Nc4 {[%clk 0:00:19.2]}
45... Bb1 {[%clk 0:00:23.7]} 46. a3 {[%clk 0:00:18.5]} 46... Bc2 {[%clk
0:00:22.1]} 47. b4 {[%clk 0:00:17.8]} 47... h5 {[%clk 0:00:21.7]} 48. Ne3 {[%clk
0:00:17.7]} 48... Bb3 {[%clk 0:00:20.2]} 49. Ke5 {[%clk 0:00:18]} 49... Be6
{[%clk 0:00:18.1]} 50. f5 {[%clk 0:00:17.9]} 50... Bd7 {[%clk 0:00:18.4]} 51.
Nd5+ {[%clk 0:00:17.7]} 51... Kf7 {[%clk 0:00:18.2]} 52. Kf4 {[%clk 0:00:18.2]}
52... Bc6 {[%clk 0:00:15.6]} 53. Nc3 {[%clk 0:00:17.7]} 53... Kf6 {[%clk
0:00:15.6]} 54. Ne2 {[%clk 0:00:17.9]} 54... Bf3 {[%clk 0:00:14.5]} 55. Ng3
{[%clk 0:00:17.9]} 55... h4 {[%clk 0:00:13.3]} 56. Nf1 {[%clk 0:00:17.1]} 56...
Bd1 {[%clk 0:00:12.7]} 57. Ne3 {[%clk 0:00:16.2]} 57... Be2 {[%clk 0:00:11.6]}
58. Nxg4+ {[%clk 0:00:15.4]} 58... Kf7 {[%clk 0:00:10.1]} 59. Ne5+ {[%clk
0:00:15]} 59... Kg7 {[%clk 0:00:09.9]} 60. Ng4 {[%clk 0:00:15.2]} 60... Bf1
{[%clk 0:00:09.2]} 61. Kg5 {[%clk 0:00:15.4]} 61... h3 {[%clk 0:00:09.4]} 62.
Ne5 {[%clk 0:00:15.8]} 62... b6 {[%clk 0:00:08.5]} 63. f6+ {[%clk 0:00:16.7]}
63... Kf8 {[%clk 0:00:08.5]} 64. Kg6 {[%clk 0:00:16.4]} 64... Bb5 {[%clk
0:00:09]} 65. Kf5 {[%clk 0:00:16.7]} 65... a5 {[%clk 0:00:09.5]} 66. Kg4 {[%clk
0:00:16.7]} 66... axb4 {[%clk 0:00:09.9]} 67. axb4 {[%clk 0:00:17.5]} 67... Bc4
{[%clk 0:00:07.3]} 68. Kxh3 {[%clk 0:00:17.6]} 68... Be6+ {[%clk 0:00:06.9]} 69.
Kh4 {[%clk 0:00:17.8]} 69... b5 {[%clk 0:00:07.8]} 70. Kg5 {[%clk 0:00:18.1]}
70... Bd5 {[%clk 0:00:08.1]} 71. h4 {[%clk 0:00:18.7]} 1-0

[Event "*** Titled Tuesday Blitz"]
[Site "Chess.com"]
[Date "2020.05.26"]
[Round "10"]
[White "UCantHandleDenker"]
[Black "Roman_Ovetchkin"]
[Result "1-0"]
[WhiteElo "2471"]
[BlackElo "2590"]
[TimeControl "180+1"]
[EndTime "12:04:05 PDT"]
[Termination "UCantHandleDenker won by resignation"]

1. Nf3 {[%clk 0:02:58.6]} 1... d5 {[%clk 0:02:57.5]} 2. g3 {[%clk 0:02:59.5]}
2... Bg4 {[%clk 0:02:56.6]} 3. Bg2 {[%clk 0:02:59.5]} 3... Nd7 {[%clk
0:02:56.8]} 4. O-O {[%clk 0:02:57.9]} 4... c6 {[%clk 0:02:57.1]} 5. d3 {[%clk
0:02:57.8]} 5... e6 {[%clk 0:02:57.3]} 6. Nbd2 {[%clk 0:02:57.6]} 6... Bc5
{[%clk 0:02:57.6]} 7. h3 {[%clk 0:02:57.1]} 7... Bh5 {[%clk 0:02:57]} 8. Qe1
{[%clk 0:02:55.6]} 8... Ne7 {[%clk 0:02:56.7]} 9. e4 {[%clk 0:02:55.2]} 9... O-O
{[%clk 0:02:56.4]} 10. Kh1 {[%clk 0:02:55.1]} 10... b5 {[%clk 0:02:55.1]} 11. e5
{[%clk 0:02:46.4]} 11... a5 {[%clk 0:02:51.5]} 12. Ng1 {[%clk 0:02:46]} 12...
Qc7 {[%clk 0:02:33.4]} 13. f4 {[%clk 0:02:45.3]} 13... Rae8 {[%clk 0:02:31.2]}
14. g4 {[%clk 0:02:38.7]} 14... Bg6 {[%clk 0:02:31]} 15. Ne2 {[%clk 0:02:39.1]}
15... f6 {[%clk 0:02:26.3]} 16. d4 {[%clk 0:02:32.5]} 16... Bb6 {[%clk
0:02:25.6]} 17. c3 {[%clk 0:02:32.2]} 17... fxe5 {[%clk 0:02:23.4]} 18. fxe5
{[%clk 0:02:31.3]} 18... c5 {[%clk 0:02:22.6]} 19. Nf3 {[%clk 0:02:28.8]} 19...
Nc6 {[%clk 0:02:18.7]} 20. Be3 {[%clk 0:02:25.9]} 20... cxd4 {[%clk 0:01:43.7]}
21. Nexd4 {[%clk 0:02:22.3]} 21... Ncxe5 {[%clk 0:01:25.8]} 22. Nxb5 {[%clk
0:02:18.6]} 22... Nxf3 {[%clk 0:01:24.1]} 23. Rxf3 {[%clk 0:02:00.1]} 23... Qb8
{[%clk 0:01:19.4]} 24. Rxf8+ {[%clk 0:01:52.9]} 24... Nxf8 {[%clk 0:01:19.3]}
25. a4 {[%clk 0:01:44.9]} 25... Bf7 {[%clk 0:01:18.1]} 26. Bd4 {[%clk
0:01:41.9]} 26... e5 {[%clk 0:01:16.8]} 27. Bxb6 {[%clk 0:01:33.5]} 27... Qxb6
{[%clk 0:01:17.7]} 28. Qd2 {[%clk 0:01:34.3]} 28... e4 {[%clk 0:01:15.6]} 29.
Re1 {[%clk 0:01:28.5]} 29... h5 {[%clk 0:01:14.4]} 30. gxh5 {[%clk 0:01:21.8]}
30... Qf6 {[%clk 0:01:09.3]} 31. Qe3 {[%clk 0:01:15.2]} 31... Re5 {[%clk
0:01:07.3]} 32. Rf1 {[%clk 0:01:08.3]} 32... Rf5 {[%clk 0:01:02.5]} 33. Rxf5
{[%clk 0:01:05.6]} 33... Qxf5 {[%clk 0:01:02.8]} 34. h6 {[%clk 0:01:06.1]} 34...
g5 {[%clk 0:00:59.3]} 35. Nd4 {[%clk 0:01:05.3]} 35... Qf4 {[%clk 0:00:58.3]}
36. Qe2 {[%clk 0:01:00.7]} 36... Nd7 {[%clk 0:00:49.2]} 37. Nc6 {[%clk
0:00:53.2]} 37... Kh7 {[%clk 0:00:46.6]} 38. b4 {[%clk 0:00:46.4]} 38... axb4
{[%clk 0:00:45.6]} 39. Nxb4 {[%clk 0:00:46.1]} 39... Qc1+ {[%clk 0:00:42.3]} 40.
Qf1 {[%clk 0:00:44.6]} 40... Qf4 {[%clk 0:00:35]} 41. a5 {[%clk 0:00:40.7]}
41... Kxh6 {[%clk 0:00:32.8]} 42. a6 {[%clk 0:00:40.2]} 42... Nb6 {[%clk
0:00:27.6]} 43. a7 {[%clk 0:00:39]} 43... Na8 {[%clk 0:00:27.5]} 44. Nc6 {[%clk
0:00:37.5]} 44... Be6 {[%clk 0:00:27.3]} 45. Nd4 {[%clk 0:00:37]} 45... Bd7
{[%clk 0:00:26.7]} 46. Qa6+ {[%clk 0:00:35.2]} 46... Kg7 {[%clk 0:00:25.4]} 47.
Ne2 {[%clk 0:00:30.1]} 47... Qe3 {[%clk 0:00:22.9]} 48. Qb7 {[%clk 0:00:28.2]}
48... Qxe2 {[%clk 0:00:21.7]} 49. Qxd7+ {[%clk 0:00:27.5]} 49... Kf6 {[%clk
0:00:21.9]} 50. Qd6+ {[%clk 0:00:25.8]} 50... Kf5 {[%clk 0:00:21.3]} 51. Qxd5+
{[%clk 0:00:25.6]} 51... Kf4 {[%clk 0:00:21.1]} 52. Qd6+ {[%clk 0:00:22.9]}
52... Ke3 {[%clk 0:00:20.9]} 53. Qg3+ {[%clk 0:00:19.5]} 53... Kd2 {[%clk
0:00:20.7]} 54. Qxg5+ {[%clk 0:00:18.3]} 54... Kc2 {[%clk 0:00:17.5]} 55. Qf5
{[%clk 0:00:16.6]} 55... Qe1+ {[%clk 0:00:16.5]} 56. Kh2 {[%clk 0:00:16.4]}
56... Kxc3 {[%clk 0:00:16.8]} 57. Qxe4 {[%clk 0:00:16.1]} 57... Qxe4 {[%clk
0:00:14.6]} 58. Bxe4 {[%clk 0:00:17]} 58... Nc7 {[%clk 0:00:14.8]} 59. h4 {[%clk
0:00:15.8]} 59... Kd4 {[%clk 0:00:14.3]} 60. Bg2 {[%clk 0:00:15.9]} 60... Ke5
{[%clk 0:00:14.9]} 61. Kg3 {[%clk 0:00:16.2]} 61... Kf6 {[%clk 0:00:15.1]} 62.
Kf4 {[%clk 0:00:16.4]} 62... Kg6 {[%clk 0:00:14.3]} 63. Bf3 {[%clk 0:00:16.5]}
63... Kf6 {[%clk 0:00:14.3]} 64. h5 {[%clk 0:00:16.3]} 64... Kg7 {[%clk
0:00:14.1]} 65. Ke5 {[%clk 0:00:16.5]} 65... Kh6 {[%clk 0:00:13.8]} 66. Kf6
{[%clk 0:00:15.3]} 66... Kh7 {[%clk 0:00:12.1]} 67. Ke7 {[%clk 0:00:14]} 67...
Kh6 {[%clk 0:00:11.7]} 68. Kd7 {[%clk 0:00:13.2]} 1-0

[Event "*** Titled Tuesday Blitz"]
[Site "Chess.com"]
[Date "2020.05.26"]
[Round "10"]
[White "Tall-guy"]
[Black "CarlssonLudvig"]
[Result "1/2-1/2"]
[WhiteElo "2155"]
[BlackElo "2494"]
[TimeControl "180+1"]
[EndTime "12:04:07 PDT"]
[Termination "Game drawn by repetition"]

1. e4 {[%clk 0:03:00.6]} 1... e5 {[%clk 0:02:59]} 2. Nf3 {[%clk 0:02:59.9]} 2...
Nc6 {[%clk 0:02:58.5]} 3. d4 {[%clk 0:02:59.3]} 3... exd4 {[%clk 0:02:57.3]} 4.
Bc4 {[%clk 0:02:59.8]} 4... Nf6 {[%clk 0:02:46.3]} 5. O-O {[%clk 0:02:55.9]}
5... Nxe4 {[%clk 0:02:45.7]} 6. Re1 {[%clk 0:02:55.5]} 6... d5 {[%clk
0:02:45.5]} 7. Bxd5 {[%clk 0:02:56]} 7... Qxd5 {[%clk 0:02:45.9]} 8. Nc3 {[%clk
0:02:56.9]} 8... Qh5 {[%clk 0:02:24.3]} 9. Nxe4 {[%clk 0:02:51.9]} 9... Be6
{[%clk 0:02:23.9]} 10. Bg5 {[%clk 0:02:51.8]} 10... Bd6 {[%clk 0:01:55.9]} 11.
Nxd6+ {[%clk 0:02:50.6]} 11... cxd6 {[%clk 0:01:55.8]} 12. Bf4 {[%clk
0:02:50.2]} 12... O-O-O {[%clk 0:01:46.8]} 13. Nxd4 {[%clk 0:02:35.5]} 13...
Qxd1 {[%clk 0:01:35.7]} 14. Raxd1 {[%clk 0:02:36.4]} 14... Nxd4 {[%clk
0:01:13.9]} 15. Rxd4 {[%clk 0:02:37.3]} 15... d5 {[%clk 0:01:07.7]} 16. Re3
{[%clk 0:02:23.6]} 16... Kd7 {[%clk 0:00:43]} 17. c4 {[%clk 0:02:16.5]} 17...
Rc8 {[%clk 0:00:43.4]} 18. Red3 {[%clk 0:02:14]} 18... Rhe8 {[%clk 0:00:29.5]}
19. cxd5 {[%clk 0:02:11.1]} 19... Bf5 {[%clk 0:00:29.5]} 20. Rd1 {[%clk
0:02:09.6]} 20... Re4 {[%clk 0:00:27.6]} 21. f3 {[%clk 0:01:14.9]} 21... Rxd4
{[%clk 0:00:26.7]} 22. Rxd4 {[%clk 0:01:15.8]} 22... Rc2 {[%clk 0:00:26.4]} 23.
Rd2 {[%clk 0:01:16.2]} 23... Rxd2 {[%clk 0:00:25.3]} 24. Bxd2 {[%clk 0:01:17.1]}
24... Kd6 {[%clk 0:00:24.5]} 25. Bc3 {[%clk 0:01:13.1]} 25... g6 {[%clk
0:00:21.5]} 26. Kf2 {[%clk 0:01:09.7]} 26... Kxd5 {[%clk 0:00:20.8]} 27. Ke3
{[%clk 0:01:09.6]} 27... Bb1 {[%clk 0:00:19.2]} 28. a3 {[%clk 0:01:09.7]} 28...
Kc4 {[%clk 0:00:19.6]} 29. g3 {[%clk 0:01:06.7]} 29... Bf5 {[%clk 0:00:13.5]}
30. Kf4 {[%clk 0:01:07.1]} 30... h5 {[%clk 0:00:05.8]} 31. g4 {[%clk 0:01:04]}
31... Bc2 {[%clk 0:00:05.3]} 32. gxh5 {[%clk 0:01:01.3]} 32... gxh5 {[%clk
0:00:06.2]} 33. Kg5 {[%clk 0:01:00.7]} 33... Bd1 {[%clk 0:00:06.7]} 34. f4
{[%clk 0:01:01.1]} 34... Kd3 {[%clk 0:00:02.2]} 35. Kf6 {[%clk 0:01:01]} 35...
Bb3 {[%clk 0:00:02.3]} 36. Kg5 {[%clk 0:01:00.3]} 36... Bd1 {[%clk 0:00:02.8]}
37. f5 {[%clk 0:00:53.6]} 37... Ke4 {[%clk 0:00:02.9]} 38. f6 {[%clk 0:00:54]}
38... Be2 {[%clk 0:00:02.6]} 39. Kh6 {[%clk 0:00:51.7]} 39... Kd5 {[%clk
0:00:03.1]} 40. Kg7 {[%clk 0:00:51.9]} 40... Ke6 {[%clk 0:00:04]} 41. Kh6 {[%clk
0:00:51.9]} 41... Bd1 {[%clk 0:00:04.5]} 42. Kg5 {[%clk 0:00:52.2]} 42... Be2
{[%clk 0:00:04.2]} 43. Kf4 {[%clk 0:00:44]} 43... b6 {[%clk 0:00:04.5]} 44. Ke3
{[%clk 0:00:44.4]} 44... Bd1 {[%clk 0:00:05]} 45. Kf4 {[%clk 0:00:45]} 45... Bc2
{[%clk 0:00:05]} 46. Kg5 {[%clk 0:00:44.9]} 46... Bg6 {[%clk 0:00:05.9]} 47. Kf4
{[%clk 0:00:45.3]} 47... Kd5 {[%clk 0:00:05.5]} 48. Ke3 {[%clk 0:00:42.5]} 48...
Kc4 {[%clk 0:00:05.2]} 49. Kf4 {[%clk 0:00:43.1]} 49... Kd3 {[%clk 0:00:05]} 50.
h4 {[%clk 0:00:41.6]} 50... Ke2 {[%clk 0:00:04.7]} 51. Kg5 {[%clk 0:00:42.1]}
51... Ke3 {[%clk 0:00:04.2]} 52. Kh6 {[%clk 0:00:41.4]} 52... Kf4 {[%clk
0:00:04.2]} 53. Kg7 {[%clk 0:00:39]} 53... Kg4 {[%clk 0:00:03.6]} 54. Be1 {[%clk
0:00:39.6]} 54... Kf5 {[%clk 0:00:04]} 55. Bf2 {[%clk 0:00:38.1]} 55... Ke4
{[%clk 0:00:03.6]} 56. Be1 {[%clk 0:00:38.6]} 56... Kd3 {[%clk 0:00:03.4]} 57.
Bg3 {[%clk 0:00:37.7]} 57... Kc2 {[%clk 0:00:03.9]} 58. Be5 {[%clk 0:00:38]}
58... Kb3 {[%clk 0:00:04.3]} 59. Bc3 {[%clk 0:00:38.4]} 59... a5 {[%clk
0:00:04.2]} 60. Be5 {[%clk 0:00:39.3]} 60... b5 {[%clk 0:00:04.5]} 61. Bc3
{[%clk 0:00:39.3]} 61... b4 {[%clk 0:00:04.4]} 62. axb4 {[%clk 0:00:40.2]} 62...
axb4 {[%clk 0:00:05.3]} 63. Be5 {[%clk 0:00:40.5]} 63... Kc2 {[%clk 0:00:05.2]}
64. Kf8 {[%clk 0:00:39.1]} 64... Kb3 {[%clk 0:00:04]} 65. Ke7 {[%clk 0:00:39.1]}
65... Kc4 {[%clk 0:00:03.4]} 66. Kd6 {[%clk 0:00:40]} 66... Kb5 {[%clk
0:00:03.1]} 67. Kd5 {[%clk 0:00:39.9]} 67... b3 {[%clk 0:00:02.8]} 68. Kd4
{[%clk 0:00:40.1]} 68... Kc6 {[%clk 0:00:03.1]} 69. Kc3 {[%clk 0:00:41]} 69...
Bc2 {[%clk 0:00:03.5]} 70. Bd4 {[%clk 0:00:41.2]} 70... Kd5 {[%clk 0:00:03.8]}
71. Be3 {[%clk 0:00:42.1]} 71... Ke6 {[%clk 0:00:03.8]} 72. Bg5 {[%clk 0:00:43]}
72... Kf5 {[%clk 0:00:03.4]} 73. Kd4 {[%clk 0:00:43.9]} 73... Kg4 {[%clk
0:00:02.2]} 74. Kc3 {[%clk 0:00:44.8]} 74... Bg6 {[%clk 0:00:02.8]} 75. Kd4
{[%clk 0:00:45.7]} 75... Bc2 {[%clk 0:00:02.6]} 76. Kc3 {[%clk 0:00:46.6]} 76...
Kf5 {[%clk 0:00:03.5]} 77. Kd4 {[%clk 0:00:46.9]} 77... Kg6 {[%clk 0:00:04.4]}
78. Kc3 {[%clk 0:00:47.8]} 78... Kf5 {[%clk 0:00:04.2]} 1/2-1/2

[Event "*** Titled Tuesday Blitz"]
[Site "Chess.com"]
[Date "2020.05.26"]
[Round "10"]
[White "Quaternitychess"]
[Black "GOGIEFF"]
[Result "0-1"]
[WhiteElo "2813"]
[BlackElo "2911"]
[TimeControl "180+1"]
[EndTime "12:04:08 PDT"]
[Termination "GOGIEFF won by checkmate"]

1. e4 {[%clk 0:03:00.9]} 1... c5 {[%clk 0:02:58.5]} 2. b3 {[%clk 0:02:56.8]}
2... Nf6 {[%clk 0:02:52.4]} 3. e5 {[%clk 0:02:56]} 3... Nd5 {[%clk 0:02:52.5]}
4. Bb2 {[%clk 0:02:56.9]} 4... g6 {[%clk 0:02:48.8]} 5. Qf3 {[%clk 0:02:56.2]}
5... Nc7 {[%clk 0:02:41.1]} 6. h4 {[%clk 0:02:55]} 6... Nc6 {[%clk 0:02:28.8]}
7. h5 {[%clk 0:02:54.9]} 7... g5 {[%clk 0:02:23.3]} 8. h6 {[%clk 0:02:40.8]}
8... Ne6 {[%clk 0:02:20.3]} 9. Bc4 {[%clk 0:02:20.6]} 9... Qc7 {[%clk
0:02:03.8]} 10. Bxe6 {[%clk 0:02:11.5]} 10... dxe6 {[%clk 0:01:58.6]} 11. Qe3
{[%clk 0:02:11.6]} 11... Rg8 {[%clk 0:01:50.7]} 12. Nf3 {[%clk 0:01:41.3]} 12...
Rg6 {[%clk 0:01:28.4]} 13. g4 {[%clk 0:01:39.8]} 13... Bd7 {[%clk 0:01:20.4]}
14. Na3 {[%clk 0:01:39.9]} 14... O-O-O {[%clk 0:01:14.6]} 15. O-O-O {[%clk
0:01:40]} 15... f6 {[%clk 0:01:03.1]} 16. Kb1 {[%clk 0:01:34.9]} 16... a6 {[%clk
0:01:02]} 17. Qxc5 {[%clk 0:01:30.4]} 17... b6 {[%clk 0:00:42.3]} 18. Qe3 {[%clk
0:01:28.5]} 18... Nb4 {[%clk 0:00:42.3]} 19. c4 {[%clk 0:01:01.6]} 19... Bc6
{[%clk 0:00:41.6]} 20. d4 {[%clk 0:01:01.5]} 20... Qb7 {[%clk 0:00:41.9]} 21.
Rh3 {[%clk 0:00:59.3]} 21... Be4+ {[%clk 0:00:36.9]} 22. Ka1 {[%clk 0:00:58.5]}
22... f5 {[%clk 0:00:34.4]} 23. Nxg5 {[%clk 0:00:54.9]} 23... fxg4 {[%clk
0:00:34.7]} 24. Rh4 {[%clk 0:00:44]} 24... Bf3 {[%clk 0:00:27.4]} 25. Nxf3
{[%clk 0:00:41.5]} 25... Qxf3 {[%clk 0:00:28.3]} 26. Qxf3 {[%clk 0:00:39.1]}
26... gxf3 {[%clk 0:00:29.2]} 27. Bc3 {[%clk 0:00:39.3]} 27... Nc6 {[%clk
0:00:29.3]} 28. Rdh1 {[%clk 0:00:34.5]} 28... Rg2 {[%clk 0:00:29]} 29. Rf4
{[%clk 0:00:22.5]} 29... Rxf2 {[%clk 0:00:27]} 30. Kb1 {[%clk 0:00:23]} 30...
Rg2 {[%clk 0:00:18.1]} 31. Nc2 {[%clk 0:00:21.4]} 31... f2 {[%clk 0:00:15.8]}
32. Rf1 {[%clk 0:00:21.9]} 32... Rg3 {[%clk 0:00:14.9]} 33. Kb2 {[%clk
0:00:20.6]} 33... Bxh6 {[%clk 0:00:14.7]} 34. R4xf2 {[%clk 0:00:21.1]} 34... Bg5
{[%clk 0:00:15.3]} 35. Rf3 {[%clk 0:00:20.8]} 35... Rg2 {[%clk 0:00:14.7]} 36.
R1f2 {[%clk 0:00:21]} 36... Rxf2 {[%clk 0:00:15.1]} 37. Rxf2 {[%clk 0:00:21.2]}
37... h5 {[%clk 0:00:15.9]} 38. Rg2 {[%clk 0:00:19.1]} 38... Bf4 {[%clk
0:00:15.9]} 39. Rg7 {[%clk 0:00:18.2]} 39... Rh8 {[%clk 0:00:14.7]} 40. Rf7
{[%clk 0:00:15.3]} 40... Bg5 {[%clk 0:00:13.1]} 41. d5 {[%clk 0:00:15.1]} 41...
Nd8 {[%clk 0:00:11.9]} 42. Rg7 {[%clk 0:00:15.1]} 42... Bh6 {[%clk 0:00:11.8]}
43. Rxe7 {[%clk 0:00:14.9]} 43... h4 {[%clk 0:00:11.2]} 44. d6 {[%clk 0:00:10]}
44... h3 {[%clk 0:00:11.4]} 45. Rc7+ {[%clk 0:00:10.5]} 45... Kb8 {[%clk
0:00:10.9]} 46. Nb4 {[%clk 0:00:11.4]} 46... h2 {[%clk 0:00:09.6]} 47. Nxa6+
{[%clk 0:00:10.4]} 47... Ka8 {[%clk 0:00:10.1]} 48. Rc8+ {[%clk 0:00:06.5]}
48... Kb7 {[%clk 0:00:09.7]} 49. Rc7+ {[%clk 0:00:06.6]} 49... Ka8 {[%clk
0:00:06.7]} 50. Rc8+ {[%clk 0:00:05.7]} 50... Ka7 {[%clk 0:00:07.2]} 51. Rc7+
{[%clk 0:00:06]} 51... Nb7 {[%clk 0:00:07.4]} 52. c5 {[%clk 0:00:05.5]} 52...
h1=Q {[%clk 0:00:07.1]} 53. Nb4 {[%clk 0:00:05.3]} 53... Qc1# {[%clk 0:00:05.8]}
0-1

[Event "*** Titled Tuesday Blitz"]
[Site "Chess.com"]
[Date "2020.05.26"]
[Round "10"]
[White "GMSrinath"]
[Black "Escanor89"]
[Result "1-0"]
[WhiteElo "2802"]
[BlackElo "2565"]
[TimeControl "180+1"]
[EndTime "12:04:09 PDT"]
[Termination "GMSrinath won on time"]

1. Nf3 {[%clk 0:03:00.9]} 1... Nf6 {[%clk 0:02:59.4]} 2. c4 {[%clk 0:03:01.3]}
2... g6 {[%clk 0:02:59.4]} 3. b3 {[%clk 0:03:01.8]} 3... Bg7 {[%clk 0:02:59.1]}
4. Bb2 {[%clk 0:03:02.5]} 4... O-O {[%clk 0:02:58.3]} 5. g3 {[%clk 0:03:02.9]}
5... d6 {[%clk 0:02:56.2]} 6. Bg2 {[%clk 0:03:03.4]} 6... c5 {[%clk 0:02:55.5]}
7. O-O {[%clk 0:03:03.8]} 7... e5 {[%clk 0:02:55.5]} 8. e3 {[%clk 0:03:03.3]}
8... Re8 {[%clk 0:02:51.7]} 9. d4 {[%clk 0:03:03.5]} 9... e4 {[%clk 0:02:48.5]}
10. Ne1 {[%clk 0:03:03.5]} 10... Qe7 {[%clk 0:02:43.1]} 11. Nc3 {[%clk
0:03:02.4]} 11... Bf5 {[%clk 0:02:30.8]} 12. Nc2 {[%clk 0:02:58.4]} 12... Nc6
{[%clk 0:02:28]} 13. a3 {[%clk 0:02:56.8]} 13... Rad8 {[%clk 0:02:22.3]} 14. b4
{[%clk 0:02:55.3]} 14... b6 {[%clk 0:02:16.4]} 15. Qd2 {[%clk 0:02:48.6]} 15...
h5 {[%clk 0:02:08.9]} 16. Rae1 {[%clk 0:02:27.2]} 16... h4 {[%clk 0:02:07.3]}
17. f3 {[%clk 0:02:23.8]} 17... hxg3 {[%clk 0:02:03.2]} 18. hxg3 {[%clk
0:02:23.6]} 18... exf3 {[%clk 0:01:58.1]} 19. Bxf3 {[%clk 0:02:24.5]} 19... Qd7
{[%clk 0:01:24.8]} 20. dxc5 {[%clk 0:02:15.4]} 20... bxc5 {[%clk 0:01:20.9]} 21.
bxc5 {[%clk 0:02:14.8]} 21... Ne5 {[%clk 0:01:14.3]} 22. c6 {[%clk 0:02:08.4]}
22... Nxf3+ {[%clk 0:01:11.7]} 23. Rxf3 {[%clk 0:02:07.5]} 23... Qxc6 {[%clk
0:01:11.8]} 24. Nd4 {[%clk 0:02:08.1]} 24... Qxc4 {[%clk 0:01:07.3]} 25. Nxf5
{[%clk 0:02:07.3]} 25... gxf5 {[%clk 0:01:06.4]} 26. Rxf5 {[%clk 0:02:04.3]}
26... Qg4 {[%clk 0:01:02.4]} 27. Qf2 {[%clk 0:02:04.7]} 27... Re6 {[%clk
0:00:49.5]} 28. Rf3 {[%clk 0:01:34.9]} 28... Rb8 {[%clk 0:00:45.2]} 29. Ba1
{[%clk 0:01:29.1]} 29... Rf8 {[%clk 0:00:36.6]} 30. Kg2 {[%clk 0:01:28.5]} 30...
Ne4 {[%clk 0:00:32.4]} 31. Nxe4 {[%clk 0:01:27.5]} 31... Rxe4 {[%clk 0:00:32.4]}
32. Bxg7 {[%clk 0:01:25]} 32... Qxg7 {[%clk 0:00:32.1]} 33. Rd1 {[%clk
0:01:24.2]} 33... Re6 {[%clk 0:00:29.9]} 34. Rd4 {[%clk 0:01:22.9]} 34... Rfe8
{[%clk 0:00:25.2]} 35. Qd2 {[%clk 0:01:15.1]} 35... Rb8 {[%clk 0:00:17.1]} 36.
Rff4 {[%clk 0:01:11]} 36... Rb6 {[%clk 0:00:16.1]} 37. Rg4 {[%clk 0:01:08]}
37... Rg6 {[%clk 0:00:16]} 38. Rxg6 {[%clk 0:01:08.4]} 38... Qxg6 {[%clk
0:00:16.3]} 39. Qe2 {[%clk 0:01:06.6]} 39... Kf8 {[%clk 0:00:15.9]} 40. a4
{[%clk 0:00:56.8]} 40... Rc6 {[%clk 0:00:14.8]} 41. Rc4 {[%clk 0:00:42.5]} 41...
Rxc4 {[%clk 0:00:13.8]} 42. Qxc4 {[%clk 0:00:43.4]} 42... Qe6 {[%clk 0:00:10.6]}
43. Qd4 {[%clk 0:00:31.5]} 43... a5 {[%clk 0:00:09.1]} 44. g4 {[%clk 0:00:27.7]}
44... Ke7 {[%clk 0:00:07.2]} 45. Kf3 {[%clk 0:00:15.4]} 45... Kf8 {[%clk
0:00:03.7]} 46. Qh8+ {[%clk 0:00:14.2]} 46... Ke7 {[%clk 0:00:03.7]} 47. Qd4
{[%clk 0:00:14.7]} 47... Kf8 {[%clk 0:00:03.6]} 48. Kf4 {[%clk 0:00:15.2]} 48...
Ke7 {[%clk 0:00:03.7]} 49. Qa7+ {[%clk 0:00:14.5]} 49... Kf6 {[%clk 0:00:03.8]}
50. Qxa5 {[%clk 0:00:10.8]} 50... Qc4+ {[%clk 0:00:04]} 51. Kg3 {[%clk
0:00:11.2]} 51... d5 {[%clk 0:00:04]} 52. Qd8+ {[%clk 0:00:10.4]} 52... Kg6
{[%clk 0:00:03.6]} 53. Qd6+ {[%clk 0:00:10.4]} 53... Kg7 {[%clk 0:00:03.2]} 54.
Qe5+ {[%clk 0:00:10.5]} 54... Kg6 {[%clk 0:00:03]} 55. Qd4 {[%clk 0:00:09.8]}
55... Qb3 {[%clk 0:00:02.7]} 56. a5 {[%clk 0:00:09.2]} 56... Qa3 {[%clk
0:00:02.3]} 57. Qb6+ {[%clk 0:00:06.5]} 57... Kg7 {[%clk 0:00:01.8]} 58. g5
{[%clk 0:00:07]} 58... d4 {[%clk 0:00:01.6]} 59. Qxd4+ {[%clk 0:00:06.6]} 59...
Kg6 {[%clk 0:00:01.6]} 60. Qf6+ {[%clk 0:00:06.6]} 1-0